Cogmind - Beta 9.3 @@@ ROGUE MODE // 2019.12.27 @ 00:53:04 // Winter2019/RPGLIKE Player: cptwinky Result: Destroyed by G-47 Trooper with Particle Gun Performance ------------- Evolutions (2) 1000 Regions Visited (5) 1000 Robots Destroyed (27) 135 Value Destroyed (943) 943 Prototype IDs (27) 540 Alien Tech Used (0) 0 Bonus (335) 335 TOTAL SCORE: 3953 Bonus ------- Follower Combat Kills 35 Aligned with FarCom 300 Cogmind --------- Core Integrity 0/650 Matter 280/300 Energy 2167/2170 System Corruption 0% Temperature Cool (11) Movement Core (50) Location -8/Materials Parts ------- > --- POWER (1) -------- Makeshift Power Source > --- PROPULSION (1) --- (None) > --- UTILITY (2) ------ Superbattery Improved Terrain Scanner > --- WEAPON (2) ------- EM Pulse Gun Mining Laser > --- INVENTORY (4) ---- Experimental Sensor Array Rocket Launcher Peak State ------------ > --- POWER ------------ Makeshift Power Source > --- PROPULSION ------- (None) > --- UTILITY ---------- Superbattery Improved Terrain Scanner > --- WEAPON ----------- EM Pulse Gun Rocket Launcher > --- INVENTORY -------- Experimental Sensor Array EM Pulse Gun Mining Laser [Rating: 19] Favorites ----------- Power Light Ion Engine Engine Light Ion Engine Propulsion None Utility Improved Terrain Scanner Device Improved Terrain Scanner Storage Superbattery Weapon EM Pulse Gun Energy Gun EM Pulse Gun Launcher Rocket Launcher Special Weapon Mining Laser Build | -11 -10 -10 -10 -9 -8 ------- Run | Scr Mat Min Exi Min Mat Slots Evolved 2 | 2 . . . . . Power . | . . . . . . Propulsion . | . . . . . . Utility 1 | 1 . . . . . Weapon 1 | 1 . . . . . Parts Attached 11 | 4 . . 3 2 2 Power 2 | 1 . . . 1 . Engine 2 | 1 . . . 1 . Core . | . . . . . . Reactor . | . . . . . . Propulsion . | . . . . . . Treads . | . . . . . . Leg . | . . . . . . Wheel . | . . . . . . Hover . | . . . . . . Flight . | . . . . . . Utility 2 | 1 . . 1 . . Device 1 | 1 . . . . . Storage 1 | . . . 1 . . Processor . | . . . . . . Hackware . | . . . . . . Protection . | . . . . . . Artifact . | . . . . . . Weapon 7 | 2 . . 2 1 2 Energy Gun 4 | 2 . . 1 . 1 Energy Cannon . | . . . . . . Ballistic Gun . | . . . . . . Ballistic Cannon . | . . . . . . Launcher 2 | . . . 1 1 . Special Weapon 1 | . . . . . 1 Impact Weapon . | . . . . . . Slashing Weapon . | . . . . . . Piercing Weapon . | . . . . . . Special Melee Weapon . | . . . . . . Unidentified Prototypes . | . . . . . . Parts Lost 1 | . . . . 1 . Power . | . . . . . . Propulsion . | . . . . . . Utility . | . . . . . . Weapon 1 | . . . . 1 . Highest Loss Streak 1 | . . . . 1 . Average Slot Usage (%) 73 | . 66 66 79 82 83 Engine 16 | . 16 16 16 16 16 Device 16 | . 16 16 16 16 16 Storage 6 | . . . 12 16 16 Energy Gun 30 | . 33 33 28 29 16 Launcher 2 | . . . 4 2 6 Naked Turns . | . . . . . . Heaviest Build 15 | 8 8 8 14 15 15 Greatest Support 13 | 8 8 8 13 13 13 Greatest Overweight (x) 1 | . . . 1 1 1 Average Overweight (x) . | . . . . . . Largest Inventory Capacity 4 | . 2 2 2 4 4 Average Capacity 1 | . . 2 2 3 4 Most Carried 3 | . 1 2 2 3 2 Average Carried 1 | . . 1 2 2 2 Final Capacity 4 | . 2 2 2 4 4 Final Carried 3 | . 1 2 2 3 2 Class Distribution -------------------- 80% | Mutant 12% | Hacker-Scout 6% | Scout Dominant Class ---------------- Mutant | -10/Materials Mutant | -10/Mines Mutant | -10/Exiles Hacker-Scout | -9/Mines Hacker-Scout | -8/Materials Resources | -11 -10 -10 -10 -9 -8 ----------- Run | Scr Mat Min Exi Min Mat Matter Collected 334 | 215 25 . . 94 . Remotely . | . . . . . . Salvage Created 947 | 108 227 . 274 285 53 Parts 47 | 4 17 . 8 16 2 Haulers Intercepted . | . . . . . . Recyclers Shooed . | . . . . . . Parts Field Recycled . | . . . . . . Retrieved Matter . | . . . . . . Parts Self-Destructed . | . . . . . . Prevented . | . . . . . . Kills | -11 -10 -10 -10 -9 -8 ------- Run | Scr Mat Min Exi Min Mat Combat Hostiles Destroyed 20 | . 6 . 4 9 1 Guns 14 | . 5 . 3 6 . AOE 5 | . 1 . . 3 1 Classes Destroyed 10 | 2 3 . 2 3 . Tunneler 2 | 2 . . . . . Recycler 2 | 1 1 . . . . Watcher 3 | . 3 . . . . Swarmer 5 | . 2 . . 3 . Grunt 9 | . 4 . 2 2 1 Brawler 1 | . . . . 1 . Duelist 1 | . . . 1 . . Demolisher 2 | . . . . 2 . Hunter 1 | . . . 1 . . Assembled 1 | . . . . 1 . Best Kill Streak 4 | 2 3 . 1 4 1 Combat Bots Only 4 | . 2 . 1 4 1 Max Kills in Single Turn 2 | 1 1 . 1 2 1 Gunslinging 1 | . . . . 1 . Exploded 1 | . 1 . . 1 1 Melee . | . . . . . . Uniques/NPCs Destroyed . | . . . . . . Combat | -11 -10 -10 -10 -9 -8 -------- Run | Scr Mat Min Exi Min Mat Damage Taken 1003 | . 51 . 198 643 111 Core 836 | . 42 . 156 552 86 Absorbed by Shields . | . . . . . . Redirected to Core 566 | . 24 . 144 312 86 Core Remaining (%) 52 | 100 . . . 5 . Volleys Fired 87 | 4 31 6 15 22 9 Largest 2 | 2 2 2 2 2 1 Hottest 100 | 80 80 80 80 80 100 Shots Fired 160 | 8 62 12 30 39 9 Gun 155 | 8 62 12 30 35 8 Cannon . | . . . . . . Launcher 4 | . . . . 4 . Special 1 | . . . . . 1 Kinetic . | . . . . . . Thermal 1 | . . . . . 1 Explosive 4 | . . . . 4 . Electromagnetic 155 | 8 62 12 30 35 8 Robot Hit Streak 11 | 5 10 1 9 11 2 Robot Miss Streak 4 | 1 2 1 3 4 . Penetration Max . | . . . . . . Secondary Targets 2 | . . . . 2 . Max Gunslinging Chain 1 | . . . . 1 . Shots Hit Robots 74 | 6 26 1 22 18 1 Core Hits 38 | 4 13 . 6 14 1 Critical Hits . | . . . . . . Critical Kills . | . . . . . . Critical Parts Destroyed . | . . . . . . Melee Attacks . | . . . . . . Impact . | . . . . . . Slashing . | . . . . . . Piercing . | . . . . . . Sneak Attacks . | . . . . . . Combat Hostiles . | . . . . . . Follow-up Attacks . | . . . . . . Damage Inflicted 1724 | 95 574 86 290 594 85 Guns 1079 | 95 436 41 290 205 12 Cannons . | . . . . . . Explosions 645 | . 138 45 . 389 73 Melee . | . . . . . . Ramming . | . . . . . . Kinetic . | . . . . . . Thermal 369 | . 138 45 . 113 73 Explosive 276 | . . . . 276 . Electromagnetic 1079 | 95 436 41 290 205 12 Impact . | . . . . . . Slashing . | . . . . . . Piercing . | . . . . . . Highest Corruption 1 | . . . . 1 . Average Corruption 1 | . . . . 1 . Corruption Purged . | . . . . . . Overload Shots . | . . . . . . Overflow Damage 58 | . 21 30 . 7 . Projectiles . | . . . . . . Explosions 58 | . 21 30 . 7 . Melee . | . . . . . . Knockbacks . | . . . . . . Impact . | . . . . . . Kinetic . | . . . . . . Secondary . | . . . . . . Self-Inflicted Damage 53 | . . . . . 53 Shots 1 | . . . . . 1 Rammed . | . . . . . . Targets Rammed . | . . . . . . Kicked . | . . . . . . Crushed . | . . . . . . Highest Temperature 32 | . 23 20 20 32 2 Average Temperature 14 | . 11 14 14 18 2 Received Heat Transfer 166 | . 15 . 30 85 36 Siege Activations . | . . . . . . Robots Corrupted 2 | . 1 . 1 . . Combat Hostiles 1 | . . . 1 . . Parts Fried 5 | . 4 . 1 . . Impact Corruptions . | . . . . . . Robots Melted . | . . . . . . Combat Hostiles . | . . . . . . Parts Melted . | . . . . . . Heat Transferred 300 | . 100 50 . 100 50 Parts Sabotaged . | . . . . . . Parts Stolen . | . . . . . . Parts Stripped . | . . . . . . Power Chain Reactions 5 | . 2 . . 2 1 Missiles Intercepted . | . . . . . . Alert | -11 -10 -10 -10 -9 -8 ------- Run | Scr Mat Min Exi Min Mat Peak Influence 301 | 15 204 130 . 258 301 Average Influence 108 | 8 95 83 . 192 107 Maximum Alert Level 1 | . 1 . . 1 1 Low Security (%) 84 | 100 98 100 . 32 98 Level 1 15 | . 1 . . 67 1 Level 2 . | . . . . . . Level 3 . | . . . . . . Level 4 . | . . . . . . Level 5 . | . . . . . . High Security . | . . . . . . Max Security . | . . . . . . Squads Dispatched 6 | . 3 . . . 3 Investigation 3 | . 3 . . . . Extermination . | . . . . . . Reinforcement 1 | . . . . . 1 Assault 1 | . . . . . 1 Garrison 1 | . . . . . 1 Intercept . | . . . . . . Construction Impeded . | . . . . . . Haulers Reinforced . | . . . . . . Stealth | -11 -10 -10 -10 -9 -8 --------- Run | Scr Mat Min Exi Min Mat Distress Signals . | . . . . . . Communications Jammed . | . . . . . . Distress Signals . | . . . . . . Times Spotted 41 | . 15 . 6 16 4 Peak Tracking Total 9 | . 4 . 9 8 3 Tactical Retreats 3 | . 2 . 1 . . Traps | -11 -10 -10 -10 -9 -8 ------- Run | Scr Mat Min Exi Min Mat Traps Triggered . | . . . . . . Indirectly . | . . . . . . Trap Hack Attempts . | . . . . . . Triggered . | . . . . . . Disarmed . | . . . . . . Reprogrammed 6 | . 6 . . . . Reused 2 | . 2 . . . . Traps Extracted . | . . . . . . Installed . | . . . . . . Triggered 2 | . 2 . . . . Exploded 1 | . . . 1 . . Machines | -11 -10 -10 -10 -9 -8 ---------- Run | Scr Mat Min Exi Min Mat Machines Disabled 14 | . 4 4 . 5 1 Max in Single Turn 1 | . 1 1 . 1 1 Garrison Access 1 | . . . . . 1 Machines Sabotaged . | . . . . . . Garrisons Compromised . | . . . . . . Overloaded Fab Kills . | . . . . . . Fab Network Shutdowns . | . . . . . . Hacking | -11 -10 -10 -10 -9 -8 --------- Run | Scr Mat Min Exi Min Mat Machines Accessed 11 | . 8 . 2 . 1 Terminals 6 | . 6 . . . . Fabricators . | . . . . . . Repair Stations . | . . . . . . Recycling Units 2 | . 2 . . . . Scanalyzers . | . . . . . . Garrison Access 1 | . . . . . 1 Total Hacks 42 | . 37 . 2 . 3 Successful 29 | . 25 . 2 . 2 Failed 13 | . 12 . . . 1 Catastrophic . | . . . . . . Database Lockouts . | . . . . . . Manual 27 | . 23 . 1 . 3 Terminals 32 | . 32 . . . . Fabricators . | . . . . . . Repair Stations . | . . . . . . Recycling Units 5 | . 5 . . . . Scanalyzers . | . . . . . . Garrison Access 3 | . . . . . 3 Terminal Hacks 17 | . 15 . 2 . . Record 1 | . . . 1 . . Robot Analysis 2 | . 2 . . . . Prototype ID Bank 4 | . 4 . . . . Branch Access Points 1 | . 1 . . . . Unreport Threat 3 | . 3 . . . . Locate Traps 2 | . 2 . . . . Reprogram Traps 2 | . 2 . . . . Hauler Manifests 1 | . 1 . . . . EX-Prototype ID Bank 1 | . . . 1 . . Fabricator Hacks . | . . . . . . Repair Station Hacks . | . . . . . . Recycling Unit Hacks 2 | . 2 . . . . Retrieve Components 2 | . 2 . . . . Scanalyzer . | . . . . . . Garrison Access Hacks . | . . . . . . Unauthorized Hacks 23 | . 18 . . . 5 Terminals 6 | . 6 . . . . Track 1 | . 1 . . . . Assimilate 1 | . 1 . . . . Botnet 2 | . 2 . . . . Disrupt 1 | . 1 . . . . Operators 1 | . 1 . . . . Fabricators . | . . . . . . Repair Stations . | . . . . . . Recycling Units 2 | . 2 . . . . Tunnel 2 | . 2 . . . . Scanalyzers . | . . . . . . Garrison Access 2 | . . . . . 2 Reprogram 2 | . . . . . 2 Data Cores Recovered . | . . . . . . Used . | . . . . . . Hacking Detections 4 | . 4 . . . . Full Trace Events 1 | . 1 . . . . Feedback Events . | . . . . . . Feedback Blocked . | . . . . . . Robot Schematics Acquired . | . . . . . . Robots Built . | . . . . . . Matter . | . . . . . . Time . | . . . . . . Total Robot Build Rating . | . . . . . . Part Schematics Acquired . | . . . . . . Parts Built . | . . . . . . Matter . | . . . . . . Time . | . . . . . . Total Part Build Rating . | . . . . . . Parts Repaired . | . . . . . . Time . | . . . . . . Parts Recycled . | . . . . . . Recycled Matter . | . . . . . . Retrieved Matter . | . . . . . . Retrieved Components 5 | . 5 . . . . Parts Scanalyzed . | . . . . . . Part Schematics Acquired . | . . . . . . Parts Damaged . | . . . . . . Bothacking | -11 -10 -10 -10 -9 -8 ------------ Run | Scr Mat Min Exi Min Mat Used RIF Installer . | . . . . . . Robots Hacked . | . . . . . . Non-combat . | . . . . . . Combat . | . . . . . . Robot Hacks Applied . | . . . . . . Relay Couplers Released 1 | . . . . . 1 Machine Destruction 1 | . . . . . 1 Robots Rewired . | . . . . . . Allies Hacked . | . . . . . . Hacks Repelled . | . . . . . . Allies | -11 -10 -10 -10 -9 -8 -------- Run | Scr Mat Min Exi Min Mat Total Allies 5 | . 1 . . 3 1 Largest Group 3 | . 1 . . 3 1 Highest-Rated Group 40 | . 10 . . 40 15 Highest-Rated Ally 16 | . 10 . . 16 15 Total Orders 2 | . 2 . . . . STAY 1 | . 1 . . . . GOTO 1 | . 1 . . . . Ally Attacks 17 | . . . . 13 4 Total Damage 213 | . . . . 130 83 Kills 2 | . . . . 1 1 Allies Corrupted . | . . . . . . Allies Melted . | . . . . . . Intel | -11 -10 -10 -10 -9 -8 ------- Run | Scr Mat Min Exi Min Mat Robot Analysis Total 2 | . 2 . . . . Derelict Logs Recovered 2 | . . 2 . . . Drone Launches . | . . . . . . Drone Recoveries . | . . . . . . Exploration | -11 -10 -10 -10 -9 -8 ------------- Run | Scr Mat Min Exi Min Mat Turns Passed 1415 | 68 363 317 388 228 51 Spaces Moved 1741 | 39 456 577 418 214 37 Core 1741 | 39 456 577 418 214 37 Treads . | . . . . . . Legs . | . . . . . . Wheels . | . . . . . . Hover . | . . . . . . Flight . | . . . . . . Fastest Speed 50 | 50 50 50 50 50 50 Average Speed 53 | 50 50 50 58 54 71 Slowest Speed 100 | 50 50 50 100 100 100 Overloaded Moves . | . . . . . . Propulsion Burnouts . | . . . . . . Robots Hopped . | . . . . . . Cave-ins Triggered . | . . . . . . Exploration Rate (%) 44 | 4 70 66 69 50 7 Regions Visited 5 Branch Regions 3 Pre-discovered Areas 5 | . 2 2 1 . . Known Exits Taken 1 | . 1 . . . . Unknown Exits Taken 4 | 1 . 1 1 1 . Scrap Searched 3 | . . 2 . 1 . Spaces Dug 1 | . . . . . 1 Terrain Destroyed 38 | . 7 4 . 22 5 Melee . | . . . . . . Projectile 1 | . . . . . 1 AOE 37 | . 7 4 . 22 4 Actions | -11 -10 -10 -10 -9 -8 --------- Run | Scr Mat Min Exi Min Mat Total 2058 | 76 528 592 528 284 50 Wait 209 | 30 37 9 93 40 . Move 1736 | 38 455 576 417 213 37 Hop . | . . . . . . Pick Up 3 | . 1 1 . 1 . Fast Attach 6 | 4 . . 1 1 . Attach 1 | . . . . . 1 Detach . | . . . . . . Swap 4 | . . . 2 1 1 Drop 1 | . . . . 1 . Fire 87 | 4 31 6 15 22 9 Melee . | . . . . . . Ram . | . . . . . . Kick . | . . . . . . Crush . | . . . . . . Escape Stasis . | . . . . . . Rewire . | . . . . . . Trap . | . . . . . . Miscellaneous 11 | . 4 . . 5 2 Route ------- -11/Scrapyard -10/Materials (discovered 4 exits: [*Mat x2] / *Min x2) -10/Mines (discovered 2 exits: [*Mat] / *Exi) -10/Exiles -9/Mines (discovered 2 exits: *Mat x2) -8/Materials History --------- Turn | Location | Event 1 | -11/Scrapyard | Upgraded with Utility slot (x1) 1 | -11/Scrapyard | Upgraded with Weapon slot (x1) 13 | -11/Scrapyard | Discovered new exit (range 15) 69 | -11/Scrapyard | Entered Materials 141 | -10/Materials | Discovered new exit (range 14) 145 | -10/Materials | Identified exit to Mines 281 | -10/Materials | Discovered new exit (range 7) 314 | -10/Materials | Build established: Mutant 409 | -10/Materials | Reached level 2 432 | -10/Materials | Entered Mines 466 | -10/Mines | Learned location of Storage (-9) 476 | -10/Mines | Received a Rocket Launcher from a helpful Derelict 572 | -10/Mines | Discovered new exit (range 14) 599 | -10/Mines | Deemed a non-threat by the Exiles lab entrance 632 | -10/Mines | Discovered new exit (range 5) 749 | -10/Mines | Entered Exiles 762 | -10/Exiles | Met 8R-AWN 770 | -10/Exiles | Met EX-HEX 789 | -10/Exiles | Met EX-DEC 798 | -10/Exiles | Learned location of Zion (-7) 809 | -10/Exiles | Met EX-BIN 815 | -10/Exiles | Aligned with FarCom system 816 | -10/Exiles | Given EX-Vault access code 828 | -10/Exiles | Opened EX-Vault 831 | -10/Exiles | Found Superbattery 845 | -10/Exiles | Warned to stay clear of 0b10 Research branches 853 | -10/Exiles | Exiles lab attacked by MAIN.C 1120 | -10/Exiles | Reached level 3 1132 | -10/Exiles | Discovered new exit (range 12) 1137 | -10/Exiles | Left Exiles lab with Superbattery 1137 | -10/Exiles | Entered Mines 1200 | -9/Mines | Discovered new exit (range 15) 1210 | -9/Mines | Reached level 4 1229 | -9/Mines | Found a damaged Exp. Sensor Array with a note attached 1233 | -9/Mines | Found Prototype Device 1251 | -9/Mines | Discovered new exit (range 6) 1257 | -9/Mines | Assembled infested the area 1262 | -9/Mines | Assisted by a Guerilla fighting off Assembled 1276 | -9/Mines | Assisted by bots powering up and referring to "LRC-V3" 1292 | -9/Mines | Core integrity fell below 50% 1347 | -9/Mines | Core integrity fell below 20% 1365 | -9/Mines | Entered Materials 1366 | -8/Materials | Core integrity fell below 50% 1366 | -8/Materials | Core integrity fell below 20% 1367 | -8/Materials | Reached level 5 1415 | -8/Materials | Reached level 6 1416 | -8/Materials | Destroyed by G-47 Trooper with Particle Gun Last Messages --------------- 01393_ Current location identified: Materials >>Trojan(Reprogram) Trojan loaded successfully. Testing... Dispatch confirmation system compromised. 01399_ Y-45 Defender emerges from the garrison. 01400_ Connecting with Garrison Access... >>Trojan(Reprogram) Trojan loaded successfully. Testing... Dispatch confirmation system compromised. 01403_ G-47 Trooper destroyed. 01411_ Y-45 Defender heat spikes uncontrollably. 01411_ Y-45 Defender destroyed. 01415_ Chain reaction triggered in Lgt. Nuclear Core. 01415_ G-47 Trooper destroyed. 01415_ ALERT: Garrison Access compromised, dispatching assault squad. 01415_ Garrison Access disabled. 01415_ Reached level 6. 01415_ Relay Coupler [Swarmer] tumbles out of Garrison Access. Map ----- +----------------------------------------------------+ | ?????????????????????????????????????????????????? | | ?????????????????????????????????????????????????? | | ?????????????????????????????????????????????????? | | ????????????????? ?? ?? ??????????????????????? | | ???????????? ??= ?##?#???#???????????????????? | | ??????????? ????###??#???#??????????????? | | ??????????? ! #?#?####?#??????????????????? | | ?????????? ! ##?############?#???????????? | | ?????????? ######## ? ? ?????????? | | ?????????# ? ######## ???? ????????? | | ???????###? ######?# ??? ??????????? | | ?????#??#? ?""" ######## #?#??##??????????? | | ???????#?# """ ## #### ## ?? ??#?????? | | ????????## """ # ### ## ? ?? ???????? | | ?????#?### """ ## ### ## ? ????????? | | ?????? ### ### # ??????????? | | ????? ???? # ?"" ?"???#????? | | ?????####?###### / + """ "?? ?#????? | | ??????##??###### # """ """ ??????? | | ??????########?# ####### # ? ??#????? | | ??????###?#??#?############## #########???#????? | | ?????????##?##?#### = # # #?##????? | | ??????#?########### """ # # """"" ?##?#???? | | ??????#??########## "!; + """"" +??? ???? | | ?????#??###?####### """ = =; # """"" ##??????? | | ??????????######?## """ g@*%; # ?#?#????? | | ???????##?######### """ [%!; # """ ?#??????? | | ????????#?######### ;#### T" ##??????? | | ???????#?####?##### ##?## = """ #??? ???? | | ?????????######################## ? #???????? | | ??????????###?#########??#################?#?? ??? | | ??????????############?##?###########?###???#????? | | ????????????######?###############?####??????????? | | ????????????###?###################?#?#??#???????? | | ???????????###############?##########???#????????? | | | | | | | | | | | | | | | | | | | | | | | | | | | | | | | +----------------------------------------------------+ Best States ------------- Heat Dissipation 37 Energy Generation 15 Energy Capacity 2170 Matter Stores 300 Matter Capacity 300 Sight Range 16 Terrain Scan Range 16 Terrain Scan Density 510 Evasion (%) 50 Offensive Hacking 20 Defensive Hacking 5 Item Schematics ----------------- None Robot Schematics ------------------ None Fabricated ------------ Nothing Alien Tech Used ----------------- None Achievements -------------- None Challenges ------------ None RPGLIKE | -11 -10 -10 -10 -9 -8 --------- Run | Scr Mat Min Exi Min Mat Levels Raised 5 | . 1 . 1 1 2 XP Earned 10657 | 3000 1540 800 750 1915 2652 XP Spent 7495 | 2870 750 . 200 3675 . Upgrades 23 | 14 2 . 1 6 . Utility Slot 1 | 1 . . . . . Weapon Slot 1 | 1 . . . . . Core Integrity 1 | . . . . 1 . Heat Dissipation 2 | 2 . . . . . Mass Support 2 | 1 . . 1 . . Inventory Capacity 4 | . 2 . . 2 . Terrain Scan Density 5 | 5 . . . . . Ranged Accuracy 2 | 1 . . . 1 . Hack Attack % 4 | 2 . . . 2 . Hack Defense % 1 | 1 . . . . . Protomatter Created 160 | . 125 . . 35 . Integrity Restored 186 | . 42 . . 96 48 Core 186 | . 42 . . 96 48 Protomatter Decayed 211 | . 92 . 117 2 . Game ------ Seed RiotAlphaCoupler Manual? 0 Play Time 00:17:12 Cumulative 443.9 hours Start 2019.12.27 @ 00:36:27 End 2019.12.27 @ 00:53:04 Sessions 1 Manual Loads 0 Difficulty Rogue Special Mode Winter2019/RPGLIKE Game No. 337 Rogue 333 Adventurer 4 Explorer 0 Win Type - Total 42 Types 34/3/1/2/2/0/0 Lore% 93 Gallery% 94 Achievement% 91 Wizard Run 0 Options --------- ASCII 0 Keyboard 0 Movement Vi Keybinds 0 Fullscreen 0 Font 16/Terminus Map View 76x50 Tactical HUD 1 Map Filters NONE Filters NONE Steam 1 RUN: 967ec943-e671-44be-85f6-059738ad9730